bitfinex-derivatives/quotes_ETHF0:USTF0_20250518
["timestamp","ask_amount","ask_price","bid_price","bid_amount"]
[1747588543707,0.77792,2570.1,2570.0,0.77795]
[1747588543908,2.4433,2570.2,2570.1,0.77792]
[1747588544109,2.4433,2570.2,2570.0,0.77794]
[1747588544408,0.77795,2570.1,2569.9,0.77798]
[1747588544612,2.44335,2570.1,2569.9,0.77798]
[1747588545197,8.532,2570.0,2569.8,4.7814]
[1747588545508,10.1974,2570.0,2569.8,4.7814]
[1747588545701,0.77798,2569.9,2569.8,3.2078]
[1747588545900,3.97668,2569.9,2569.8,3.2078]
[1747588546100,3.1987,2569.9,2569.8,3.98581]
[1747588546697,3.97668,2569.9,2569.8,0.77801]
[1747588546902,3.1987,2569.9,2569.8,0.77801]
[1747588547099,11.7307,2569.9,2569.8,0.77801]
[1747588548408,12.50868,2569.9,2569.8,0.77801]
[1747588548611,11.7307,2569.9,2569.8,0.77801]
[1747588548813,0.77793,2570.1,2570.0,0.77794]
[1747588549114,0.77795,2570.0,2569.9,0.77796]
[1747588549500,0.77795,2570.0,2569.8,0.778]
[1747588549702,0.77795,2570.0,2569.9,2.35508]
[1747588549703,2.40855,2570.0,2569.9,2.35508]
[1747588549906,2.40855,2570.0,2569.9,1.5771]
[1747588550311,1.5573,2570.3,2570.0,0.77794]
[1747588550312,0.77792,2570.1,2570.0,0.77794]
[1747588550512,0.77792,2570.1,2570.0,4.05744]
[1747588551015,0.77792,2570.1,2570.0,3.2795]
[1747588551316,0.77792,2570.1,2570.0,4.05745]
[1747588551907,0.77792,2570.1,2570.0,3.2795]
[1747588552314,0.77792,2570.1,2570.0,4.05745]
[1747588553814,0.77792,2570.1,2570.0,5.73645]
[1747588554016,0.77792,2570.1,2570.0,4.9585]
[1747588554217,0.77792,2570.1,2570.0,5.73645]
[1747588554718,11.7896,2570.3,2570.0,3.2795]
[1747588554909,0.77792,2570.1,2570.0,4.05744]
[1747588555111,0.77792,2570.1,2570.0,3.2795]
[1747588555712,0.77792,2570.1,2570.0,4.05745]
[1747588556024,0.77792,2570.1,2570.0,3.2795]
[1747588556511,0.77795,2570.0,2569.9,3.2078]
[1747588556712,2.34785,2570.0,2569.9,3.2078]
[1747588557521,0.77801,2569.8,2569.7,1.5929]
[1747588558218,0.77804,2569.7,2569.6,1.6825]
[1747588558519,0.77807,2569.6,2569.5,1.1577259]
[1747588559220,3.83607,2569.6,2569.5,1.1577259]
[1747588560617,0.77819,2569.2,2569.1,3.1801]
[1747588560816,9.28919,2569.2,2569.1,1.5723]
[1747588561017,0.77822,2569.1,2569.0,1.1577259]
[1747588561220,5.54952,2569.1,2569.0,1.1577259]
[1747588561918,8.75732,2569.1,2569.0,1.1577259]
[1747588562223,0.77841,2568.5,2568.4,3.05028307]
[1747588562425,12.49721,2568.5,2568.4,3.05028307]
[1747588563024,17.26851,2568.5,2568.4,3.05028307]
[1747588564018,11.7198,2568.5,2568.4,3.05028307]
[1747588564219,12.49821,2568.5,2568.4,3.05028307]
[1747588564425,3.98621,2568.5,2568.4,3.05028307]
[1747588564629,12.49821,2568.5,2568.2,3.74104294]
[1747588564835,12.49821,2568.5,2568.3,1.6424]
[1747588565034,11.7198,2568.5,2568.3,1.6424]
[1747588565230,8.504,2568.4,2567.4,1.35513697]
[1747588565538,3.2078,2567.8,2567.7,1.6424]
[1747588566139,3.2078,2567.8,2567.4,1.35513697]
[1747588566338,3.2078,2567.8,2567.5,2.4211]
[1747588566542,3.2078,2567.8,2567.6,0.77867]
[1747588566843,11.7208,2567.8,2567.7,1.6424]
[1747588567134,3.2078,2567.8,2567.7,1.6424]
[1747588567336,3.98642,2567.8,2567.7,1.6424]
[1747588567937,3.2078,2567.8,2567.7,1.6424]
[1747588568134,3.98642,2567.8,2567.7,1.6424]
[1747588568733,3.2078,2568.1,2567.7,1.6424]
[1747588568933,8.515,2568.0,2567.8,2.38562]
[1747588569135,9.29356,2568.0,2567.9,1.6047]
[1747588569338,8.515,2568.0,2567.9,1.6047]
[1747588569640,11.7228,2568.1,2568.0,0.77856]
[1747588569840,3.2078,2568.1,2567.9,2.38327]
[1747588570542,3.2078,2568.1,2567.9,1.6047]
[1747588570844,3.2078,2568.1,2568.0,0.77856]
[1747588573244,3.2078,2568.1,2568.0,3.83656]
[1747588574540,8.516,2568.4,2568.3,0.77847]
[1747588574748,0.77842,2568.5,2568.3,0.77847]
[1747588574944,9.29441,2568.5,2568.4,1.5851]
[1747588575147,0.77841,2568.5,2568.4,1.5851]
[1747588575348,9.29441,2568.5,2568.4,1.5851]
[1747588575748,10.89831,2568.5,2568.4,1.5851]
[1747588577541,3.2078,2568.6,2568.5,0.77841]
[1747588577744,11.7238,2568.6,2568.5,0.77841]
[1747588577944,8.516,2568.6,2568.5,0.77841]
[1747588578549,10.91222,2568.8,2568.7,0.77834]
[1747588578746,10.1339,2568.8,2568.5,2.32289]
[1747588579049,0.77837,2568.6,2568.5,2.32289]
[1747588579444,0.77837,2568.7,2568.6,0.77837]
[1747588579749,10.91224,2568.8,2568.6,0.77837]
[1747588579950,10.91224,2568.8,2568.7,2.43824]
[1747588580354,10.91224,2568.8,2568.7,1.6599]
[1747588580851,12.48664,2568.8,2568.7,1.6599]
[1747588582352,2.39624,2568.8,2568.7,1.6599]
[1747588582651,9.27726,2569.0,2568.9,0.77827]
[1747588582848,3.2078,2569.6,2568.8,1.6212]
[1747588583051,0.77824,2569.1,2569.0,4.06552997]
[1747588583352,0.77824,2569.1,2569.0,1.6842]
[1747588584544,0.77831,2568.8,2568.7,3.2078]
[1747588584753,12.10674,2569.2,2568.2,10.44421]
[1747588584754,0.77838,2568.6,2568.5,2.44429]
[1747588585251,0.77060244,2568.6,2568.5,9.84197111]
[1747588585950,0.77060244,2568.6,2568.5,9.06358111]
[1747588586150,0.77060244,2568.6,2568.5,7.55588111]
[1747588586447,3.98618,2568.6,2568.4,0.77842]
[1747588586649,3.98618,2568.6,2568.5,1.5503]
[1747588587247,5.63818,2568.6,2568.5,1.5503]
[1747588587641,0.77847,2568.4,2567.9,10.8019713]
[1747588587847,4.8598,2568.6,2568.2,1.5503]
[1747588588044,0.77847,2568.3,2568.2,1.5503]
[1747588589348,0.77853,2568.1,2568.0,1.6786]
[1747588589549,0.77853,2568.1,2568.0,3.274]
[1747588589947,0.7786,2567.9,2567.7,3.2078]
[1747588590256,0.77857,2568.0,2567.8,4.05262]
[1747588590954,4.7701,2568.2,2567.8,4.05262]
[1747588590955,2.32672,2568.2,2568.1,0.77853]
[1747588591141,10.82472,2568.2,2568.1,0.77853]
[1747588591344,2.32672,2568.2,2567.8,3.274]
[1747588591545,10.8247,2568.2,2568.1,0.77853]
[1747588592156,10.8247,2568.2,2568.0,2.39984]
[1747588592157,0.77853,2568.1,2568.0,2.39984]
[1747588592851,0.77853,2568.1,2568.0,1.6213]
[1747588593045,2.36903,2568.1,2568.0,1.6213]
[1747588595959,0.77859,2567.9,2567.8,1.6786]
[1747588596554,0.77865,2567.7,2567.6,1.6766]
[1747588596859,0.77865,2567.7,2567.6,2.77244072]
[1747588597160,2.37183,2567.8,2567.6,2.77244072]
[1747588597352,1.5932,2567.8,2567.7,0.77865]
[1747588597552,2.37182,2567.8,2567.7,0.77865]
[1747588597859,5.65417,2568.0,2567.9,0.77859]
[1747588598056,3.2078,2568.0,2567.9,0.77859]
[1747588598557,0.77859,2567.9,2567.8,2.4553]
[1747588598761,3.98637,2568.0,2567.9,0.77859]
[1747588599056,1.5482,2568.2,2567.7,0.77865]
[1747588599262,3.167,2568.1,2567.8,5.5259]
[1747588599557,0.77859,2567.9,2567.8,5.5259]
[1747588599752,0.77857,2568.0,2567.9,0.77857]
[1747588600059,0.77857,2568.0,2567.9,2.46787]
[1747588600256,0.77857,2568.0,2567.9,1.6893]
[1747588600962,2.37487,2568.0,2567.9,2.46789]
[1747588601259,2.37487,2568.0,2567.9,1.6893]
[1747588601760,2.37486,2568.0,2567.9,2.46789]
[1747588602158,4.8259,2568.1,2568.0,0.77856]
[1747588602354,3.2078,2568.1,2568.0,2.46616]
[1747588603662,3.98633,2568.1,2568.0,2.46616]
[1747588603861,3.98633,2568.1,2568.0,1.6876]
[1747588604057,0.77862,2567.8,2567.7,1.6767]
[1747588604361,0.7786,2567.9,2567.8,0.7786]
[1747588604558,0.7786,2567.9,2567.8,0.77859]
[1747588604860,4.04288,2568.0,2567.9,0.77859]
[1747588605158,1.5702,2568.0,2567.9,0.77859]
[1747588605362,3.2078,2568.1,2568.0,0.77856]
[1747588605564,3.2078,2568.1,2567.9,0.77857]
[1747588605761,0.77859,2567.9,2567.8,5.18958546]
[1747588606059,0.77857,2568.0,2567.9,0.77856]
[1747588607163,4.9019,2568.1,2568.0,0.77856]
[1747588607465,3.2078,2568.1,2568.0,0.77856]
[1747588607663,3.2078,2568.4,2568.0,0.77856]
[1747588607866,3.2078,2568.4,2568.3,0.77847]
[1747588608364,3.2078,2568.4,2568.3,3.83647]
[1747588608766,3.2078,2568.4,2568.3,3.058]
[1747588609067,3.2078,2568.4,2568.3,3.83647]
[1747588609457,3.2078,2568.4,2568.3,8.03346344]
[1747588611365,3.2078,2568.4,2568.3,4.97546344]
[1747588612271,0.7785,2568.2,2568.1,3.4102]
[1747588612569,0.7785,2568.2,2568.1,1.6997]
[1747588612962,0.7785,2568.2,2568.1,2.47823]
[1747588613569,0.7785,2568.2,2568.1,1.6997]
[1747588613866,3.2078,2568.4,2568.1,1.6997]
[1747588614067,3.98625,2568.4,2568.3,0.77847]
[1747588614462,0.7785,2568.2,2568.1,6.14124687]
[1747588614661,0.7785,2568.2,2568.1,1.6997]
[1747588614857,0.7785,2568.2,2568.1,2.47823]
[1747588615668,0.7785,2568.2,2568.1,2.76651555]
[1747588615874,0.7785,2568.2,2568.1,2.76651675]
[1747588616262,0.7785,2568.2,2568.1,1.98798675]
[1747588616471,0.7785,2568.2,2568.1,2.7665433]
[1747588616671,0.7785,2568.2,2568.1,2.76655035]
[1747588616874,0.7785,2568.2,2568.1,3.86118229]
[1747588618169,0.7785,2568.2,2568.1,1.09463194]
[1747588618370,2.389,2568.2,2568.1,1.09463194]
[1747588618776,0.77861,2567.9,2567.7,2.41044]
[1747588618977,0.77861,2567.9,2567.8,1.5836]
[1747588619370,3.95471,2567.9,2567.8,1.5836]
[1747588619668,3.95471,2567.9,2567.5,2.32501831]
[1747588619669,3.1761,2567.9,2567.5,2.32501831]
[1747588619971,10.34956,2567.5,2566.6,2.08556463]
[1747588620177,3.98675,2566.7,2566.6,1.01439404]
[1747588620476,12.47075,2566.7,2566.6,1.01439404]
[1747588620868,3.2078,2566.7,2566.6,1.01439404]
[1747588621177,0.77881,2567.2,2566.9,0.77889]
[1747588621476,0.77883,2567.1,2567.0,1.5836]
[1747588621673,8.479,2567.1,2566.6,5.20241198]
[1747588621871,3.98675,2566.7,2566.6,1.01439404]
[1747588622069,12.47075,2566.7,2566.6,1.01439404]
[1747588623369,20.95075,2566.7,2566.6,1.01439404]
[1747588623569,0.77904,2566.4,2566.3,3.21260616]
[1747588623774,3.98684,2566.4,2566.3,3.21260616]
[1747588624576,0.77913,2566.1,2566.0,2.73495536]
[1747588625064,0.77913,2566.1,2566.0,5.79295536]
[1747588625270,2.45723,2566.1,2566.0,5.79295536]
[1747588626374,2.45723,2566.1,2566.0,4.21965536]
[1747588627067,2.45723,2566.1,2566.0,3.058]
[1747588628176,2.45723,2566.1,2565.7,1.5922]
[1747588628177,0.77922,2565.8,2565.7,1.5922]
[1747588629075,0.77925,2565.7,2565.6,6.2658]
[1747588629474,0.77925,2565.7,2565.6,7.8937]
[1747588629673,0.77941,2565.2,2565.1,1.16165536]
[1747588629976,0.77941,2565.2,2565.1,1.23962502]
[1747588629977,9.26741,2565.2,2565.1,1.23962502]
[1747588630379,10.95611,2565.2,2565.1,1.23962502]
[1747588630580,2.46811,2565.2,2565.1,1.16165536]
[1747588630780,10.95611,2565.2,2565.1,1.16165536]
[1747588630979,3.98719,2565.3,2565.0,4.6859]
[1747588631181,9.26741,2565.2,2565.1,5.71722666]
[1747588631374,8.488,2565.2,2565.1,1.6617]
[1747588631579,9.26741,2565.2,2565.1,1.6617]
[1747588632176,0.77944,2565.1,2565.0,4.6859]
[1747588632580,2.43524,2565.1,2565.0,4.6859]
[1747588633481,2.43524,2565.1,2565.0,3.058]
[1747588634286,10.92524,2565.1,2565.0,3.058]
[1747588636774,0.77953,2564.8,2564.7,1.5677]
[1747588637179,3.2078,2564.9,2564.8,0.77953]
[1747588637389,11.6988,2564.9,2564.8,0.77953]
[1747588637582,3.2078,2564.9,2564.7,1.5677]
[1747588637783,3.2078,2564.9,2564.8,0.77953]
[1747588637981,3.2078,2564.9,2564.8,5.08693551]
[1747588638182,11.6998,2565.2,2565.1,0.77944]
[1747588638687,3.2078,2565.2,2565.1,0.77944]
[1747588638879,3.3558,2565.6,2565.2,0.77939]
[1747588639087,0.77935,2565.4,2565.3,1.5217]
[1747588639285,9.2713,2565.6,2565.4,0.77932]
[1747588639482,3.2078,2565.7,2565.5,1.5217]
[1747588639782,3.98709,2565.6,2565.5,1.5217]
[1747588640293,5.50929,2565.6,2565.5,3.058]
[1747588640589,7.09339,2565.6,2565.5,3.058]
[1747588642384,6.3141,2565.6,2565.2,1.6477]
[1747588642582,3.2078,2565.3,2565.0,1.66838003]
[1747588642787,9.26241,2565.2,2565.1,1.6477]
[1747588642981,10.84201,2565.2,2565.1,1.6477]
[1747588643786,0.77941,2565.2,2565.1,1.6477]
[1747588643990,8.483,2565.2,2565.1,2.42711]
[1747588644286,11.6908,2565.3,2565.1,1.6477]
[1747588644483,12.47018,2565.3,2565.2,1.5959]
[1747588646686,11.6918,2565.3,2565.2,2.37531]
[1747588646888,3.2078,2565.3,2565.2,2.37531]
[1747588647088,3.2078,2565.6,2565.2,11.66757086]
[1747588647291,3.98709,2565.6,2565.3,1.6688]
[1747588647589,0.77924,2565.8,2565.6,0.77927]
[1747588647787,8.484,2565.9,2565.7,1.6688]
[1747588648086,9.26321,2565.9,2565.8,1.6311]
[1747588648289,9.26321,2565.9,2565.6,3.058]
[1747588648290,0.77926,2565.7,2565.6,3.058]
[1747588648481,3.98706,2565.7,2565.6,3.058]
[1747588649283,0.77929,2565.6,2565.5,3.058]
[1747588649484,3.2078,2565.7,2565.5,3.058]
[1747588649793,9.26329,2565.6,2565.5,3.058]
[1747588651586,8.484,2565.6,2565.5,3.83732]
[1747588651793,9.26329,2565.6,2565.5,3.83732]
[1747588651986,3.2078,2565.7,2565.6,0.77929]
[1747588652383,3.2078,2565.7,2565.6,2.40229]
[1747588653287,3.2078,2565.7,2565.6,6.49539388]
[1747588653787,3.2078,2565.7,2565.6,11.49539388]
[1747588653991,3.2078,2566.1,2566.0,0.77916]
[1747588654193,3.2078,2566.1,2565.9,10.1409]
[1747588654389,3.2078,2566.1,2565.9,1.6599]
[1747588654586,0.77916,2566.0,2565.9,5.98390668]
[1747588654787,3.98696,2566.1,2566.0,0.77916]
[1747588655086,0.77916,2566.1,2566.0,3.83716]
[1747588656489,3.2078,2566.4,2566.3,0.77907]
[1747588657091,3.2078,2566.4,2566.3,3.83707]
[1747588657289,3.2078,2566.4,2566.3,13.31034385]
[1747588657482,3.2078,2566.4,2566.3,8.31034385]
[1747588657991,3.98684,2566.4,2566.3,8.31034385]
[1747588658183,3.2078,2566.4,2566.3,8.31034385]
[1747588658787,0.77902,2566.5,2566.4,0.77904]
[1747588659185,0.779,2566.6,2566.5,0.77901]
[1747588659491,0.77898,2566.6,2566.5,5.08515572]
[1747588659694,0.77898,2566.6,2566.5,6.68635572]
[1747588660189,0.77898,2566.6,2566.5,8.96535572]
[1747588660691,0.77898,2566.6,2566.5,9.74436572]
[1747588661297,0.77896,2566.7,2566.5,8.96535572]
[1747588661591,0.77898,2566.6,2566.5,8.96535572]
[1747588661992,0.77897,2566.7,2566.5,9.74436572]
[1747588662291,3.2078,2566.8,2566.5,4.30615572]
[1747588662292,0.77898,2566.6,2566.5,4.30615572]
[1747588662487,0.77898,2566.6,2566.1,3.2078]
[1747588662488,0.779,2566.6,2566.4,0.78544909]
[1747588662894,0.77901,2566.5,2566.4,0.78544909]
[1747588663894,0.77901,2566.5,2566.4,0.00641909]
[1747588664094,0.77901,2566.5,2566.4,3.84345909]
[1747588664292,0.77901,2566.5,2566.4,3.06441909]
[1747588665197,0.77901,2566.5,2566.4,0.00641909]
[1747588665902,12.46781,2566.5,2566.4,0.00641909]
[1747588668398,12.46681,2566.5,2566.4,0.00641909]
[1747588668696,12.46681,2566.5,2566.4,4.51863743]
[1747588669199,12.46681,2566.5,2566.4,7.57663743]
[1747588669794,12.46681,2566.5,2566.4,4.81689912]
[1747588669994,3.98681,2566.5,2566.4,5.59593912]
[1747588670298,3.2078,2566.5,2566.4,9.79665281]
[1747588670599,3.98681,2566.5,2566.4,9.79665281]
[1747588670798,3.98681,2566.5,2566.4,14.49963278]
[1747588671200,3.98681,2566.5,2566.4,10.29891909]
[1747588671498,8.82521,2566.5,2566.4,10.29891909]
[1747588671693,8.82521,2566.5,2566.4,10.39109912]
[1747588672198,8.82521,2566.5,2566.4,7.33309912]
[1747588672401,8.82521,2566.5,2566.4,5.67279912]
[1747588672896,8.82521,2566.5,2566.4,5.58061909]
[1747588675192,13.82521,2566.5,2566.4,5.5742]
[1747588675386,13.82521,2566.5,2565.3,4.75678636]
[1747588675387,0.77932,2565.5,2565.3,4.75678636]
[1747588675702,0.77932,2565.5,2564.8,5.78988374]
[1747588675703,0.7795,2564.9,2564.8,4.69164197]
[1747588675997,3.9873,2564.9,2564.8,4.69164197]
[1747588676199,3.9873,2564.9,2564.8,6.33614197]
[1747588676404,12.4593,2564.9,2564.8,6.33614197]
[1747588676901,12.4593,2564.9,2564.8,4.69164197]
[1747588677297,11.6798,2564.9,2564.5,3.058]
[1747588677496,0.77959,2564.6,2564.5,3.058]
[1747588678602,11.6798,2564.9,2564.5,3.058]
[1747588678603,0.77957,2564.7,2564.5,3.058]
[1747588678798,9.25357,2564.7,2564.5,4.5962]
[1747588679510,9.25354,2564.8,2564.5,4.5962]
[1747588679806,3.2078,2564.9,2564.5,4.5962]
[1747588680003,9.25453,2564.8,2564.6,1.6568]
[1747588680205,0.77956,2564.7,2564.6,1.6568]
[1747588680405,0.77955,2564.8,2564.6,1.6568]
[1747588680606,0.77956,2564.7,2564.6,1.6568]
[1747588681805,11.6828,2564.9,2564.6,1.6568]
[1747588681806,0.77953,2564.8,2564.6,5.90064984]
[1747588682007,0.77954,2564.8,2564.6,6.68022984]
[1747588682305,0.77952,2564.9,2564.6,5.90064984]
[1747588682704,8.475,2565.0,2564.6,5.90064984]
[1747588682911,8.476,2565.0,2564.6,5.90064984]
[1747588683210,11.6838,2565.1,2564.8,0.77953]
[1747588683408,3.98726,2565.1,2564.9,0.7795]
[1747588683609,3.2078,2565.1,2565.0,0.77947]
[1747588683812,3.2078,2565.1,2564.9,5.11201721]
[1747588684008,3.98724,2565.1,2565.0,4.33253721]
[1747588684202,3.98724,2565.1,2564.9,3.83748]
[1747588684412,0.77947,2565.0,2564.9,3.83748]
[1747588684612,0.77947,2565.0,2564.9,3.058]
[1747588684814,0.77947,2565.0,2564.9,7.29128752]
[1747588685614,0.77947,2565.0,2564.9,8.07078752]
[1747588687011,0.77947,2565.0,2564.9,7.29128752]
[1747588687215,3.2078,2565.7,2565.2,0.77939]
[1747588687516,0.77935,2565.4,2565.3,1.5347]
[1747588687813,8.476,2565.6,2565.3,5.77981578]
[1747588688116,0.77932,2565.5,2565.4,2.49135]
[1747588688314,0.77932,2565.5,2565.4,1.712]
[1747588688608,0.77932,2565.5,2565.4,4.24511578]
[1747588688816,2.48542,2565.5,2565.4,4.24511578]
[1747588689116,2.48542,2565.5,2565.4,7.30311578]
[1747588689412,2.48542,2565.5,2565.4,3.058]
[1747588691315,2.25452,2565.5,2565.4,3.058]
[1747588691516,0.54842,2565.5,2565.4,3.058]
[1747588693214,2.23482,2565.5,2565.4,3.058]
[1747588693818,0.54842,2565.5,2565.4,3.058]
[1747588694318,0.54842,2565.5,2565.4,4.7865]
[1747588698418,8.476,2565.6,2565.4,5.56582]
[1747588698619,0.77932,2565.5,2565.4,5.56582]
[1747588699019,0.77932,2565.5,2565.4,4.7865]
[1747588700123,0.7793,2565.6,2565.5,0.77932]
[1747588700321,0.7793,2565.6,2565.5,2.47992]
[1747588700520,0.7793,2565.6,2565.5,1.7006]
[1747588701227,0.7793,2565.6,2565.5,4.7586]
[1747588704628,0.7793,2565.6,2565.5,5.53792]
[1747588705027,0.7793,2565.6,2565.5,4.7586]
[1747588705830,0.7793,2565.6,2565.5,5.53792]
[1747588706020,3.2078,2565.7,2565.6,0.77928]
[1747588706328,3.2078,2565.7,2565.6,6.42974255]
[1747588706732,1.5471552,2565.8,2565.7,0.77925]
[1747588707022,1.5471552,2565.8,2565.7,5.69315]
[1747588707219,1.5471552,2565.8,2565.7,15.16313668]
[1747588707417,1.5471552,2565.8,2565.7,10.16313668]
[1747588708126,1.5471552,2565.8,2565.7,15.16313668]
[1747588708827,1.5471552,2565.8,2565.7,23.63213668]
[1747588709027,0.77912,2566.2,2566.1,0.77913]
[1747588709425,0.77912,2566.2,2566.1,4.92770283]
[1747588709831,0.77912,2566.2,2566.1,4.14857283]
[1747588710132,0.77913,2566.1,2566.0,3.83714]
[1747588710622,0.77913,2566.1,2566.0,8.15578594]
[1747588710942,0.77913,2566.2,2566.1,0.77913]
[1747588711121,13.2249552,2566.3,2566.0,7.37664594]
[1747588711326,14.0040252,2566.3,2566.2,4.51285503]
[1747588711634,14.0040252,2566.3,2566.2,0.7791]
[1747588711931,14.0040252,2566.3,2566.2,2.5041]
[1747588712132,14.0040252,2566.3,2566.2,1.725]
[1747588712524,0.7791,2566.2,2566.1,3.058]
[1747588712827,2.4201,2566.2,2566.1,7.4203463]
[1747588713332,0.77916,2566.0,2565.9,8.466]
[1747588713534,0.77919,2565.9,2565.8,5.677]
[1747588713723,0.77919,2565.9,2565.8,3.946]
[1747588714225,0.77919,2565.9,2565.8,7.004]
[1747588714430,2.38759,2565.9,2565.8,7.004]
[1747588714829,3.95729,2565.9,2565.8,7.004]
[1747588715030,5.54719,2565.9,2565.8,7.004]
[1747588715222,5.54719,2565.9,2565.8,3.946]
[1747588716129,5.54719,2565.9,2565.8,7.004]
[1747588716526,13.79819,2565.9,2565.8,7.004]
[1747588717232,13.79819,2565.9,2565.8,3.946]
[1747588717432,0.77926,2565.7,2565.6,1.5986]
[1747588718535,0.77926,2565.7,2565.5,3.058]
[1747588718536,0.77929,2565.6,2565.5,3.058]
[1747588718726,2.35359,2565.6,2565.5,3.058]
[1747588718927,7.35359,2565.6,2565.5,3.058]
[1747588719231,0.77944,2565.1,2565.0,1.6807]
[1747588719934,0.77944,2565.1,2565.0,2.46017]
[1747588720238,0.77944,2565.1,2565.0,4.7387]
[1747588722025,0.77944,2565.1,2565.0,3.058]
[1747588722231,0.77953,2564.8,2564.7,1.6149]
[1747588722624,0.77953,2564.8,2564.7,6.01105148]
[1747588723437,0.77953,2564.8,2564.7,6.79061148]
[1747588724343,0.77953,2564.8,2564.7,6.01105148]
[1747588724743,0.77953,2564.8,2564.7,6.79061148]
[1747588726642,0.77953,2564.8,2564.7,6.01105148]
[1747588727345,0.77953,2564.8,2564.7,1.6149]
[1747588728142,0.77953,2564.8,2564.7,7.1891]
[1747588728537,0.77953,2564.8,2564.7,8.7443]
[1747588729549,2.36233,2564.8,2564.7,8.83648003]
[1747588729942,2.36233,2564.8,2564.7,5.66638003]
[1747588732247,15.82133,2564.8,2564.7,4.86750003]
[1747588733043,19.29133,2564.8,2564.7,4.86750003]
[1747588734341,21.62077437,2564.8,2564.7,4.86750003]
[1747588735643,23.19047437,2564.8,2564.7,4.86750003]
[1747588737353,22.40840794,2564.8,2564.7,4.86750003]
[1747588738745,12.36870794,2564.8,2564.7,4.86750003]
[1747588738940,10.78590794,2564.8,2564.7,4.86750003]
[1747588739147,10.41100794,2564.8,2564.7,4.86750003]
[1747588739648,10.41100794,2564.8,2564.7,7.99830003]
[1747588740153,8.86363,2564.8,2564.7,7.99830003]
[1747588740860,3.2078,2564.9,2564.8,0.77953]
[1747588741049,3.2078,2564.9,2564.8,2.35843]
[1747588741359,3.2078,2564.9,2564.8,6.70012018]
[1747588741657,3.9873,2564.9,2564.8,5.92059018]
[1747588741852,3.2078,2564.9,2564.8,6.70012018]
[1747588742153,3.9873,2564.9,2564.8,9.75812018]
[1747588742353,1.54737794,2565.0,2564.9,0.7795]
[1747588742547,1.54737794,2565.0,2564.9,3.903]
[1747588742748,12.44623,2565.2,2565.0,0.77946]
[1747588743055,3.98723,2565.2,2565.1,7.48799324]
[1747588744050,3.2078,2565.2,2565.1,8.26743324]
[1747588745961,2.32669794,2565.5,2565.4,0.77935]
[1747588746154,3.9871,2565.6,2565.5,0.77932]
[1747588746352,3.2078,2565.6,2565.2,1.6123]
[1747588746554,0.77933,2565.5,2565.4,0.77934]
[1747588746758,3.2078,2565.6,2565.5,0.77932]
[1747588746960,3.2078,2565.6,2565.5,5.26713088]
[1747588747161,4.75517794,2565.9,2565.6,0.77927]
[1747588747460,4.75517794,2565.9,2565.7,5.85455646]
[1747588748450,0.77922,2565.8,2565.7,5.85455646]
[1747588749058,2.34832,2565.8,2565.7,1.5523]
[1747588750255,0.77926,2565.7,2565.6,3.058]
[1747588750557,4.01766,2565.7,2565.6,2.13405]
[1747588750755,0.7795,2564.9,2564.8,2.85199581]
[1747588751361,0.7795,2564.9,2564.8,5.90999581]
[1747588751863,3.98729,2565.0,2564.8,6.68952581]
[1747588752061,0.77949,2565.0,2564.8,6.68952581]
[1747588752263,0.7795,2564.9,2564.8,5.90999581]
[1747588752562,3.9873,2564.9,2564.8,3.15018003]
[1747588753057,8.9873,2564.9,2564.8,3.15018003]
[1747588753257,8.9873,2564.9,2564.8,0.09218003]
[1747588753960,25.8903,2564.9,2564.8,0.09218003]
[1747588754360,20.8903,2564.9,2564.8,0.09218003]
[1747588757166,22.5317,2564.9,2564.8,0.09218003]
[1747588758259,5.6287,2564.9,2564.8,0.09218003]
[1747588758466,22.5307,2564.9,2564.8,0.09218003]
[1747588759173,14.0867,2564.9,2564.8,0.09218003]
[1747588760065,13.7118,2564.9,2564.8,0.09218003]
[1747588761068,0.77953,2564.8,2564.7,4.68314]
[1747588761258,4.11733,2564.8,2564.7,1.77896022]
[1747588761463,9.11733,2564.8,2564.7,1.77896022]
[1747588762367,26.01833,2564.8,2564.7,1.77896022]
[1747588762663,12.57633,2564.8,2564.7,1.77896022]
[1747588762865,19.29033,2564.8,2564.7,1.77896022]
[1747588763771,2.39033,2564.8,2564.7,1.77896022]
[1747588763972,10.84933,2564.8,2564.7,1.77896022]
[1747588764967,10.84933,2564.8,2564.7,3.41196022]
[1747588765660,2.39033,2564.8,2564.7,3.41196022]
[1747588765865,0.77953,2564.8,2564.7,5.06086022]
[1747588766061,1.5505147,2564.8,2564.7,6.69246022]
[1747588766366,2.3300447,2564.8,2564.7,6.69246022]
[1747588766578,1.5505147,2564.8,2564.7,7.47202022]
[1747588766872,2.3300447,2564.8,2564.7,6.69246022]
[1747588767474,1.5505147,2564.8,2564.7,7.47202022]
[1747588767668,1.5505147,2564.8,2564.7,25.06113043]
[1747588767872,5.53357205,2564.9,2564.8,0.77953]
[1747588767873,2.32577205,2564.9,2564.8,0.77953]
[1747588768170,2.32577205,2564.9,2564.8,10.64441003]
[1747588768366,2.32577205,2564.9,2564.8,15.01133391]
[1747588769172,3.08684332,2565.2,2564.8,14.23180391]
[1747588769366,3.08684332,2565.2,2565.1,0.77944]
[1747588769567,3.2078,2565.7,2565.2,0.77941]
[1747588769767,0.77932,2565.5,2565.3,3.2943]
[1747588770070,0.77932,2565.5,2565.3,7.73024989]
[1747588770270,0.7793,2565.6,2565.5,0.77932]
[1747588770471,0.77929,2565.6,2565.4,0.77933]
[1747588770680,0.77932,2565.5,2565.4,5.21528989]
[1747588770876,3.2078,2565.7,2565.6,0.77929]
[1747588771074,3.98706,2565.7,2565.6,0.77929]
[1747588771274,3.98706,2565.7,2565.6,4.11616603]